fUST/lending_fUST_20241002
["ID","MTS","AMOUNT","RATE_DAILY","PERIOD"]
[339698935,1727870866401,-500.0,0.00013972,2]
[339698936,1727870866423,-151.0,0.00013972,2]
[339698937,1727870866446,-151.0,0.00013972,2]
[339698938,1727870866468,-500.0,0.00013972,2]
[339698939,1727870866489,-538.30486,0.00013972,2]
[339698940,1727870866512,-538.30486,0.00013972,2]
[339698941,1727870866535,-538.30486,0.00013972,2]
[339698942,1727870866558,-500.0,0.00013972,2]
[339698943,1727870866579,-500.0,0.00013972,2]
[339698944,1727870866606,-500.0,0.00013972,2]
[339698945,1727870866627,-500.0,0.00013972,2]
[339698946,1727870866650,-384.01126462,0.00013972,2]
[339698947,1727870866673,-500.0,0.00013972,2]
[339698948,1727870866695,-539.939301,0.00013972,2]
[339698949,1727870866718,-643.01,0.00013972,2]
[339698950,1727870866741,-500.0,0.00013972,2]
[339698951,1727870866765,-500.0,0.00013972,2]
[339698952,1727870866786,-500.0,0.00013972,2]
[339698953,1727870866810,-500.0,0.00013972,2]
[339698954,1727870866834,-151.0,0.00013972,2]
[339698955,1727870866859,-151.0,0.00013972,2]
[339698956,1727870866884,-151.0,0.00013972,2]
[339698957,1727870866908,-500.0,0.00013972,2]
[339698958,1727870866930,-584.29,0.00013972,2]
[339698959,1727870866955,-781.62,0.00013972,2]
[339698960,1727870866979,-2401.86,0.00013972,2]
[339698961,1727870867006,-500.0,0.00013972,2]
[339698962,1727870867030,-704.15,0.00013972,2]
[339698963,1727870867054,-623.98,0.00013972,2]
[339698964,1727870867077,-500.0,0.00013972,2]
[339698965,1727870867102,-663.43,0.00013972,2]
[339698966,1727870867125,-500.0,0.00013972,2]
[339698967,1727870867148,-500.0,0.00013972,2]
[339698968,1727870867171,-500.0,0.00013972,2]
[339698969,1727870867194,-500.0,0.00013972,2]
[339698970,1727870867218,-982.48,0.00013972,2]
[339698971,1727870867240,-500.0,0.00013972,2]
[339698972,1727870867269,-270.848466,0.00013972,2]
[339698973,1727870867294,-270.848466,0.00013972,2]
[339698974,1727870867319,-500.0,0.00013972,2]
[339698975,1727870867345,-151.0,0.00013972,2]
[339698976,1727870867370,-270.848466,0.00013972,2]
[339698977,1727870867393,-500.0,0.00013972,2]
[339698978,1727870867417,-151.0,0.00013972,2]
[339698979,1727870867442,-151.0,0.00013972,2]
[339698980,1727870867466,-276.2283048,0.00013972,2]
[339698981,1727870867489,-500.0,0.00013972,2]
[339698982,1727870867514,-270.848466,0.00013972,2]
[339698983,1727870867538,-500.0,0.00013972,2]
[339698984,1727870867562,-270.848466,0.00013972,2]
[339698985,1727870867586,-143.8224063,0.00013972,2]
[339699003,1727871033250,-3099.50722025,0.00013598,2]
[339699004,1727871033260,-300.0,0.00013697,2]
[339699005,1727871033271,-300.0,0.00013697,2]
[339699006,1727871033280,-169.80942206,0.00013698,2]
[339699007,1727871033290,-514.98117344,0.00013698,2]
[339699008,1727871033300,-500.0,0.00013698,2]
[339699009,1727871033309,-500.0,0.00013698,2]
[339699010,1727871033322,-500.0,0.00013698,2]
[339699011,1727871033332,-500.0,0.00013698,2]
[339699012,1727871033341,-500.0,0.00013698,2]
[339699013,1727871033351,-500.0,0.00013698,2]
[339699014,1727871033362,-500.0,0.00013698,2]
[339699015,1727871033372,-223.47923725,0.00013698,2]
[339699023,1727871039978,-276.52076275,0.00013698,2]
[339699024,1727871039987,-500.0,0.00013698,2]
[339699025,1727871039997,-500.0,0.00013698,2]
[339699026,1727871040007,-537.92976224,0.00013698,2]
[339699027,1727871040017,-625.61,0.00013698,2]
[339699028,1727871040027,-640.07,0.00013698,2]
[339699029,1727871040036,-500.0,0.00013698,2]
[339699030,1727871040046,-500.0,0.00013698,2]
[339699031,1727871040055,-500.0,0.00013698,2]
[339699032,1727871040065,-500.0,0.00013698,2]
[339699033,1727871040074,-500.0,0.00013698,2]
[339699034,1727871040083,-500.0,0.00013698,2]
[339699035,1727871040093,-500.0,0.00013698,2]
[339699036,1727871040102,-500.0,0.00013698,2]
[339699037,1727871040111,-500.0,0.00013698,2]
[339699038,1727871040121,-545.26,0.00013698,2]
[339699039,1727871040131,-500.0,0.00013698,2]
[339699040,1727871040141,-500.0,0.00013698,2]
[339699041,1727871040150,-500.0,0.00013698,2]
[339699043,1727871040159,-500.0,0.00013698,2]
[339699045,1727871040169,-500.0,0.00013698,2]
[339699047,1727871040178,-500.0,0.00013698,2]
[339699049,1727871040188,-500.0,0.00013698,2]
[339699051,1727871040197,-535.07421613,0.00013698,2]
[339699053,1727871040207,-500.0,0.00013698,2]
[339699054,1727871040216,-500.0,0.00013698,2]
[339699055,1727871040226,-665.42,0.00013698,2]
[339699056,1727871040236,-500.0,0.00013698,2]
[339699057,1727871040245,-500.0,0.00013698,2]
[339699058,1727871040254,-1510.82,0.00013698,2]
[339699059,1727871040264,-500.0,0.00013698,2]
[339699061,1727871040273,-725.03,0.00013698,2]
[339699062,1727871040283,-2694.45,0.00013698,2]
[339699064,1727871040292,-500.0,0.00013698,2]
[339699066,1727871040302,-500.0,0.00013698,2]
[339699068,1727871040313,-500.0,0.00013698,2]
[339699070,1727871040325,-500.0,0.00013698,2]
[339699072,1727871040334,-544.16,0.00013698,2]
[339699074,1727871040344,-938.74,0.00013698,2]
[339699076,1727871040355,-2355.37,0.00013698,2]
[339699078,1727871040364,-537.97,0.00013698,2]
[339699080,1727871040374,-500.0,0.00013698,2]
[339699082,1727871040385,-500.0,0.00013698,2]
[339699084,1727871040395,-804.53,0.00013698,2]
[339699086,1727871040406,-500.0,0.00013698,2]
[339699088,1727871040416,-625.44954952,0.00013698,2]
[339699090,1727871040426,-500.0,0.00013698,2]
[339699093,1727871040438,-500.0,0.00013698,2]
[339699095,1727871040448,-500.0,0.00013698,2]
[339699097,1727871040460,-500.0,0.00013698,2]
[339699099,1727871040472,-500.0,0.00013698,2]
[339699101,1727871040484,-500.0,0.00013698,2]
[339699103,1727871040494,-500.0,0.00013698,2]
[339699105,1727871040504,-500.0,0.00013698,2]
[339699107,1727871040513,-500.0,0.00013698,2]
[339699109,1727871040523,-1021.21,0.00013698,2]
[339699111,1727871040533,-500.0,0.00013698,2]
[339699113,1727871040542,-500.0,0.00013698,2]
[339699115,1727871040552,-500.0,0.00013698,2]
[339699117,1727871040562,-582.6,0.00013698,2]
[339699119,1727871040572,-519.01873673,0.00013698,2]
[339699121,1727871040581,-500.0,0.00013698,2]
[339699123,1727871040592,-500.0,0.00013698,2]
[339699125,1727871040602,-500.0,0.00013698,2]
[339699127,1727871040611,-583.31,0.00013698,2]
[339699129,1727871040622,-500.0,0.00013698,2]
[339699131,1727871040631,-500.0,0.00013698,2]
[339699133,1727871040641,-500.0,0.00013698,2]
[339699135,1727871040651,-1550.53,0.00013698,2]
[339699137,1727871040661,-997.52,0.00013698,2]
[339699139,1727871040671,-500.0,0.00013698,2]
[339699141,1727871040681,-500.0,0.00013698,2]
[339699143,1727871040690,-500.0,0.00013698,2]
[339699145,1727871040700,-826.58,0.00013698,2]
[339699146,1727871040709,-500.0,0.00013698,2]
[339699148,1727871040719,-500.0,0.00013698,2]
[339699150,1727871040731,-500.0,0.00013698,2]
[339699152,1727871040741,-500.0,0.00013698,2]
[339699154,1727871040750,-1134.02,0.00013698,2]
[339699156,1727871040760,-738.26,0.00013698,2]
[339699158,1727871040770,-500.0,0.00013698,2]
[339699160,1727871040780,-500.0,0.00013698,2]
[339699162,1727871040790,-500.0,0.00013698,2]
[339699164,1727871040799,-500.0,0.00013698,2]
[339699166,1727871040809,-500.0,0.00013698,2]
[339699168,1727871040819,-1053.84,0.00013698,2]
[339699170,1727871040828,-500.0,0.00013698,2]
[339699172,1727871040838,-500.0,0.00013698,2]
[339699174,1727871040847,-971.26,0.00013698,2]
[339699176,1727871040856,-533.81,0.00013698,2]
[339699178,1727871040866,-620.45,0.00013698,2]
[339699180,1727871040875,-691.66,0.00013698,2]
[339699181,1727871040885,-1071.74,0.00013698,2]
[339699184,1727871040895,-500.0,0.00013698,2]
[339699185,1727871040905,-500.0,0.00013698,2]
[339699187,1727871040915,-23451.01,0.00013698,2]
[339699189,1727871040924,-500.0,0.00013698,2]
[339699191,1727871040934,-224.60832615,0.00013698,2]
[339699193,1727871040944,-565.85,0.00013698,2]
[339699195,1727871040954,-500.0,0.00013698,2]
[339699197,1727871040963,-500.0,0.00013698,2]
[339699199,1727871040974,-500.0,0.00013698,2]
[339699201,1727871040988,-1042.95,0.00013698,2]
[339699203,1727871040999,-500.0,0.00013698,2]
[339699205,1727871041008,-500.0,0.00013698,2]
[339699207,1727871041018,-532.61,0.00013698,2]
[339699209,1727871041028,-500.0,0.00013698,2]
[339699211,1727871041039,-500.0,0.00013698,2]
[339699213,1727871041049,-500.0,0.00013698,2]
[339699215,1727871041059,-500.0,0.00013698,2]
[339699217,1727871041068,-525.38,0.00013698,2]
[339699219,1727871041079,-500.0,0.00013698,2]
[339699221,1727871041088,-500.0,0.00013698,2]
[339699223,1727871041098,-2286.16,0.00013698,2]
[339699225,1727871041107,-500.0,0.00013698,2]
[339699227,1727871041116,-500.0,0.00013698,2]
[339699229,1727871041127,-500.0,0.00013698,2]
[339699231,1727871041137,-500.0,0.00013698,2]
[339699233,1727871041146,-500.0,0.00013698,2]
[339699235,1727871041157,-550.92,0.00013698,2]
[339699237,1727871041167,-500.0,0.00013698,2]
[339699239,1727871041177,-500.0,0.00013698,2]
[339699256,1727871041343,-500.0,0.00013698,2]
[339699258,1727871041355,-500.0,0.00013698,2]
[339699260,1727871041365,-500.0,0.00013698,2]
[339699262,1727871041376,-500.0,0.00013698,2]
[339699264,1727871041385,-500.0,0.00013698,2]
[339699266,1727871041395,-223.42344959,0.00013698,2]
[339699450,1727871051002,-276.57655041,0.00013698,2]
[339699451,1727871051013,-716.84,0.00013698,2]
[339699452,1727871051024,-500.0,0.00013698,2]
[339699453,1727871051035,-500.0,0.00013698,2]
[339699454,1727871051046,-500.0,0.00013698,2]
[339699455,1727871051057,-720.95,0.00013698,2]
[339699456,1727871051069,-925.67,0.00013698,2]
[339699457,1727871051231,-528.69,0.00013698,2]
[339699458,1727871051244,-642.74,0.00013698,2]
[339699459,1727871051254,-500.0,0.00013698,2]
[339699460,1727871051263,-500.0,0.00013698,2]
[339699461,1727871051272,-368.83954343,0.00013698,2]
[339699462,1727871051282,-565.69,0.00013698,2]
[339699463,1727871051291,-500.0,0.00013698,2]
[339699464,1727871051301,-500.0,0.00013698,2]
[339699465,1727871051310,-500.0,0.00013698,2]
[339699466,1727871051323,-500.0,0.00013698,2]
[339699467,1727871051333,-200.48444891,0.00013698,2]
[339699468,1727871051342,-500.0,0.00013698,2]
[339699469,1727871051351,-2164.24,0.00013698,2]
[339699470,1727871051361,-500.0,0.00013698,2]
[339699471,1727871051371,-500.0,0.00013698,2]
[339699472,1727871051381,-500.0,0.00013698,2]
[339699473,1727871051390,-500.0,0.00013698,2]
[339699474,1727871051401,-500.0,0.00013698,2]
[339699475,1727871051412,-500.0,0.00013698,2]
[339699476,1727871051421,-3803.75,0.00013698,2]
[339699477,1727871051431,-500.0,0.00013698,2]
[339699478,1727871051440,-500.0,0.00013698,2]
[339699479,1727871051450,-521.43,0.00013698,2]
[339699480,1727871051459,-500.0,0.00013698,2]
[339699481,1727871051468,-500.0,0.00013698,2]
[339699482,1727871051477,-500.0,0.00013698,2]
[339699483,1727871051490,-500.0,0.00013698,2]
[339699484,1727871051499,-500.0,0.00013698,2]
[339699485,1727871051508,-500.0,0.00013698,2]
[339699486,1727871051518,-500.0,0.00013698,2]
[339699487,1727871051527,-500.0,0.00013698,2]
[339699488,1727871051537,-500.0,0.00013698,2]
[339699489,1727871051546,-1069.34,0.00013698,2]
[339699490,1727871051557,-500.0,0.00013698,2]
[339699491,1727871051566,-500.0,0.00013698,2]
[339699492,1727871051576,-1142.46,0.00013698,2]
[339699493,1727871051586,-815.28,0.00013698,2]
[339699494,1727871051596,-625.76,0.00013698,2]
[339699495,1727871051606,-500.0,0.00013698,2]
[339699496,1727871051615,-567.11,0.00013698,2]
[339699497,1727871051625,-983.69,0.00013698,2]
[339699498,1727871051634,-500.0,0.00013698,2]
[339699499,1727871051643,-500.0,0.00013698,2]
[339699500,1727871051653,-500.0,0.00013698,2]
[339699501,1727871051663,-500.0,0.00013698,2]
[339699502,1727871051672,-500.0,0.00013698,2]
[339699503,1727871051682,-500.0,0.00013698,2]
[339699504,1727871051692,-1005.11,0.00013698,2]
[339699505,1727871051701,-882.66,0.00013698,2]
[339699506,1727871051711,-955.03,0.00013698,2]
[339699507,1727871051720,-531.42,0.00013698,2]
[339699508,1727871051730,-1028.05,0.00013698,2]
[339699509,1727871051742,-500.0,0.00013698,2]
[339699510,1727871051757,-500.0,0.00013698,2]
[339699511,1727871051766,-500.0,0.00013698,2]
[339699512,1727871051776,-566.75,0.00013698,2]
[339699513,1727871051785,-500.0,0.00013698,2]
[339699514,1727871051795,-500.0,0.00013698,2]
[339699515,1727871051805,-500.0,0.00013698,2]
[339699516,1727871051814,-784.84,0.00013698,2]
[339699517,1727871051824,-500.0,0.00013698,2]
[339699518,1727871051834,-500.0,0.00013698,2]
[339699519,1727871051843,-503.17888201,0.00013698,2]
[339699520,1727871051852,-897.82,0.00013698,2]
[339699521,1727871051861,-2220.21,0.00013698,2]
[339699522,1727871051871,-621.68,0.00013698,2]
[339699523,1727871051880,-568.24,0.00013698,2]
[339699524,1727871051889,-1066.95,0.00013698,2]
[339699525,1727871051899,-500.0,0.00013698,2]
[339699526,1727871051908,-836.17,0.00013698,2]
[339699527,1727871051918,-14752.99322524,0.00013962,2]
[339699528,1727871054243,-500.0,0.00013698,2]
[339699529,1727871054253,-500.0,0.00013698,2]
[339699530,1727871054262,-11062.775335,0.00013962,2]
[339699531,1727871054274,-357.15536906,0.00013962,2]
[339699532,1727871054284,-17188.5868773,0.00013962,2]
[339699533,1727871054294,-252.17473924,0.00013971,2]
[339699534,1727871054303,-500.0,0.00013971,2]
[339699535,1727871054314,-179.20878338,0.00013971,2]
[339699536,1727871054327,-500.0,0.00013971,2]
[339699537,1727871054337,-292.41913402,0.00013971,2]
[339699538,1727871054348,-127.0260597,0.00013972,2]
[339699539,1727871054359,-704.83,0.00013972,2]
[339699540,1727871054369,-500.0,0.00013972,2]
[339699541,1727871054378,-555.26,0.00013972,2]
[339699542,1727871054390,-541.91,0.00013972,2]
[339699543,1727871054400,-673.59,0.00013972,2]
[339699544,1727871054410,-600.76939852,0.00013972,2]
[339699545,1727871054420,-500.0,0.00013972,2]
[339699546,1727871054430,-151.0,0.00013972,2]
[339699547,1727871054440,-500.0,0.00013972,2]
[339699548,1727871054449,-151.0,0.00013972,2]
[339699549,1727871054459,-500.0,0.00013972,2]
[339699550,1727871054468,-1310.71,0.00013972,2]
[339699551,1727871054478,-500.0,0.00013972,2]
[339699552,1727871054487,-500.0,0.00013972,2]
[339699553,1727871054497,-500.0,0.00013972,2]
[339699554,1727871054507,-500.0,0.00013972,2]
[339699555,1727871054516,-500.0,0.00013972,2]
[339699556,1727871054526,-500.0,0.00013972,2]
[339699557,1727871054536,-151.0,0.00013972,2]
[339699558,1727871054546,-500.0,0.00013972,2]
[339699559,1727871054555,-500.0,0.00013972,2]
[339699560,1727871054565,-668.51,0.00013972,2]
[339699561,1727871054575,-500.0,0.00013972,2]
[339699562,1727871054585,-500.0,0.00013972,2]
[339699563,1727871054595,-500.0,0.00013972,2]
[339699564,1727871054604,-954.36,0.00013972,2]
[339699565,1727871054615,-500.0,0.00013972,2]
[339699566,1727871054624,-553.36,0.00013972,2]
[339699567,1727871054634,-500.0,0.00013972,2]
[339699568,1727871054645,-907.48,0.00013972,2]
[339699569,1727871054655,-151.0,0.00013972,2]
[339699570,1727871054665,-500.0,0.00013972,2]
[339699571,1727871054675,-261.73,0.00013972,2]
[339699572,1727871054684,-640.07,0.00013972,2]
[339699573,1727871054694,-500.0,0.00013972,2]
[339699574,1727871054704,-500.0,0.00013972,2]
[339699575,1727871054714,-500.0,0.00013972,2]
[339699576,1727871054724,-500.0,0.00013972,2]
[339699577,1727871054734,-500.0,0.00013972,2]
[339699578,1727871054745,-500.0,0.00013972,2]
[339699579,1727871054756,-235.75,0.00013972,2]
[339699580,1727871054766,-500.0,0.00013972,2]
[339699581,1727871054777,-665.42,0.00013972,2]
[339699582,1727871054787,-316.48965692,0.00013972,2]
[339699583,1727871054797,-1510.82,0.00013972,2]
[339699584,1727871054807,-500.0,0.00013972,2]
[339699585,1727871054817,-725.03,0.00013972,2]
[339699586,1727871054827,-2694.45,0.00013972,2]
[339699587,1727871054837,-500.0,0.00013972,2]
[339699588,1727871054847,-500.0,0.00013972,2]
[339699589,1727871054856,-500.0,0.00013972,2]
[339699590,1727871054866,-544.16,0.00013972,2]
[339699591,1727871054875,-938.74,0.00013972,2]
[339699592,1727871054885,-2355.37,0.00013972,2]
[339699593,1727871054895,-500.0,0.00013972,2]
[339699594,1727871054904,-537.97,0.00013972,2]
[339699595,1727871054914,-500.0,0.00013972,2]
[339699596,1727871054925,-804.53,0.00013972,2]
[339699597,1727871054935,-500.0,0.00013972,2]
[339699598,1727871054945,-151.0,0.00013972,2]
[339699599,1727871054954,-500.0,0.00013972,2]
[339699600,1727871054964,-500.0,0.00013972,2]
[339699601,1727871054974,-500.0,0.00013972,2]
[339699602,1727871054983,-500.0,0.00013972,2]
[339699603,1727871054996,-500.0,0.00013972,2]
[339699604,1727871055006,-500.0,0.00013972,2]
[339699605,1727871055016,-500.0,0.00013972,2]
[339699606,1727871055027,-500.0,0.00013972,2]
[339699607,1727871055037,-1021.21,0.00013972,2]
[339699608,1727871055047,-500.0,0.00013972,2]
[339699609,1727871055058,-255.48980446,0.00013972,2]
[339699610,1727871055070,-151.0,0.00013972,2]
[339699611,1727871055080,-151.0,0.00013972,2]
[339699612,1727871055091,-500.0,0.00013972,2]
[339699613,1727871055101,-500.0,0.00013972,2]
[339699614,1727871055111,-582.6,0.00013972,2]
[339699615,1727871055121,-500.0,0.00013972,2]
[339699616,1727871055133,-412.9190232,0.00013972,2]
[339699617,1727871055143,-500.0,0.00013972,2]
[339699618,1727871055154,-583.31,0.00013972,2]
[339699619,1727871055164,-500.0,0.00013972,2]
[339699620,1727871055174,-500.0,0.00013972,2]
[339699621,1727871055185,-500.0,0.00013972,2]
[339699622,1727871055196,-1550.53,0.00013972,2]
[339699623,1727871055206,-997.52,0.00013972,2]
[339699624,1727871055217,-500.0,0.00013972,2]
[339699625,1727871055227,-272.8271736,0.00013972,2]
[339699626,1727871055238,-500.0,0.00013972,2]
[339699627,1727871055257,-826.58,0.00013972,2]
[339699628,1727871055269,-207.70543948,0.00013972,2]
[339699629,1727871055279,-500.0,0.00013972,2]
[339699630,1727871055289,-227.57962737,0.00013972,2]
[339699631,1727871055300,-500.0,0.00013972,2]
[339699632,1727871055312,-1134.02,0.00013972,2]
[339699633,1727871055331,-738.26,0.00013972,2]
[339699634,1727871055342,-500.0,0.00013972,2]
[339699635,1727871055352,-500.0,0.00013972,2]
[339699636,1727871055363,-500.0,0.00013972,2]
[339699637,1727871055374,-500.0,0.00013972,2]
[339699638,1727871055385,-500.0,0.00013972,2]
[339699639,1727871055395,-1053.84,0.00013972,2]
[339699640,1727871055405,-500.0,0.00013972,2]
[339699641,1727871055414,-500.0,0.00013972,2]
[339699642,1727871055425,-971.26,0.00013972,2]
[339699643,1727871055436,-533.81,0.00013972,2]
[339699644,1727871055447,-620.45,0.00013972,2]
[339699645,1727871055459,-691.66,0.00013972,2]
[339699646,1727871055471,-1071.74,0.00013972,2]
[339699647,1727871055482,-500.0,0.00013972,2]
[339699648,1727871055492,-500.0,0.00013972,2]
[339699649,1727871055503,-23451.01,0.00013972,2]
[339699650,1727871055514,-565.85,0.00013972,2]
[339699651,1727871055526,-500.0,0.00013972,2]
[339699652,1727871055537,-569.86121998,0.00013972,2]
[339699653,1727871055547,-500.0,0.00013972,2]
[339699654,1727871055558,-1042.95,0.00013972,2]
[339699655,1727871055567,-500.0,0.00013972,2]
[339699656,1727871055577,-500.0,0.00013972,2]
[339699657,1727871055587,-532.61,0.00013972,2]
[339699658,1727871055597,-500.0,0.00013972,2]
[339699659,1727871055608,-500.0,0.00013972,2]
[339699660,1727871055618,-500.0,0.00013972,2]
[339699661,1727871055628,-500.0,0.00013972,2]
[339699662,1727871055639,-525.38,0.00013972,2]
[339699663,1727871055649,-500.0,0.00013972,2]
[339699664,1727871055658,-500.0,0.00013972,2]
[339699665,1727871055668,-2286.16,0.00013972,2]
[339699666,1727871055677,-500.0,0.00013972,2]
[339699667,1727871055687,-500.0,0.00013972,2]
[339699668,1727871055697,-500.0,0.00013972,2]
[339699669,1727871055706,-500.0,0.00013972,2]
[339699670,1727871055716,-500.0,0.00013972,2]
[339699671,1727871055746,-550.92,0.00013972,2]
[339699672,1727871055758,-500.0,0.00013972,2]
[339699673,1727871055775,-500.0,0.00013972,2]
[339699674,1727871055787,-500.0,0.00013972,2]
[339699675,1727871055798,-500.0,0.00013972,2]
[339699676,1727871055811,-500.0,0.00013972,2]
[339699677,1727871055822,-500.0,0.00013972,2]
[339699678,1727871055835,-500.0,0.00013972,2]
[339699679,1727871055847,-500.0,0.00013972,2]
[339699680,1727871055860,-716.84,0.00013972,2]
[339699681,1727871055870,-500.0,0.00013972,2]
[339699682,1727871055883,-500.0,0.00013972,2]
[339699683,1727871055894,-500.0,0.00013972,2]
[339699684,1727871055905,-720.95,0.00013972,2]
[339699685,1727871055916,-925.67,0.00013972,2]
[339699686,1727871055927,-528.69,0.00013972,2]
[339699687,1727871055938,-642.74,0.00013972,2]
[339699688,1727871055948,-500.0,0.00013972,2]
[339699689,1727871055959,-500.0,0.00013972,2]
[339699690,1727871055969,-565.69,0.00013972,2]
[339699691,1727871055980,-500.0,0.00013972,2]
[339699692,1727871055995,-500.0,0.00013972,2]
[339699693,1727871056007,-507.02851309,0.00013972,2]
[339699694,1727871056018,-500.0,0.00013972,2]
[339699695,1727871056030,-500.0,0.00013972,2]
[339699696,1727871056042,-2164.24,0.00013972,2]
[339699697,1727871056053,-207.217184,0.00013972,2]
[339699698,1727871056063,-396.33505722,0.00013972,2]
[339699699,1727871056073,-500.0,0.00013972,2]
[339699700,1727871056083,-207.217184,0.00013972,2]
[339699701,1727871056094,-500.0,0.00013972,2]
[339699702,1727871056104,-500.0,0.00013972,2]
[339699703,1727871056114,-500.0,0.00013972,2]
[339699704,1727871056124,-3803.75,0.00013972,2]
[339699705,1727871056135,-500.0,0.00013972,2]
[339699706,1727871056145,-500.0,0.00013972,2]
[339699707,1727871056155,-521.43,0.00013972,2]
[339699708,1727871056164,-500.0,0.00013972,2]
[339699709,1727871056174,-500.0,0.00013972,2]
[339699710,1727871056185,-261.757102,0.00013972,2]
[339699711,1727871056195,-500.0,0.00013972,2]
[339699712,1727871056205,-500.0,0.00013972,2]
[339699713,1727871056215,-500.0,0.00013972,2]
[339699714,1727871056225,-500.0,0.00013972,2]
[339699715,1727871056236,-500.0,0.00013972,2]
[339699716,1727871056247,-399.20269438,0.00013972,2]
[339699717,1727871056257,-261.757102,0.00013972,2]
[339699718,1727871056267,-1069.34,0.00013972,2]
[339699719,1727871056279,-500.0,0.00013972,2]
[339699720,1727871056291,-500.0,0.00013972,2]
[339699721,1727871056304,-1142.46,0.00013972,2]
[339699722,1727871056315,-815.28,0.00013972,2]
[339699723,1727871056329,-625.76,0.00013972,2]
[339699724,1727871056344,-500.0,0.00013972,2]
[339699725,1727871056535,-567.11,0.00013972,2]
[339699726,1727871056546,-983.69,0.00013972,2]
[339699727,1727871056556,-500.0,0.00013972,2]
[339699728,1727871056566,-500.0,0.00013972,2]
[339699729,1727871056578,-500.0,0.00013972,2]
[339699730,1727871056590,-500.0,0.00013972,2]
[339699731,1727871056600,-212.55801844,0.00013972,2]
[339699732,1727871056611,-1005.11,0.00013972,2]
[339699733,1727871056620,-882.66,0.00013972,2]
[339699734,1727871056630,-955.03,0.00013972,2]
[339699735,1727871056639,-531.42,0.00013972,2]
[339699736,1727871056648,-1028.05,0.00013972,2]
[339699737,1727871056658,-500.0,0.00013972,2]
[339699738,1727871056667,-500.0,0.00013972,2]
[339699739,1727871056677,-566.75,0.00013972,2]
[339699740,1727871056686,-500.0,0.00013972,2]
[339699741,1727871056695,-500.0,0.00013972,2]
[339699742,1727871056705,-500.0,0.00013972,2]
[339699743,1727871056714,-784.84,0.00013972,2]
[339699744,1727871056723,-500.0,0.00013972,2]
[339699745,1727871056737,-500.0,0.00013972,2]
[339699746,1727871056747,-897.82,0.00013972,2]
[339699747,1727871056756,-2220.21,0.00013972,2]
[339699748,1727871056770,-621.68,0.00013972,2]
[339699749,1727871056780,-1066.95,0.00013972,2]
[339699750,1727871056789,-500.0,0.00013972,2]
[339699751,1727871056799,-836.17,0.00013972,2]
[339699752,1727871056808,-167.51,0.00013972,2]
[339699753,1727871056817,-500.0,0.00013973,2]
[339699754,1727871056827,-600.83549981,0.00013973,2]
[339699755,1727871056837,-500.0,0.00013973,2]
[339699756,1727871056846,-500.0,0.00013973,2]
[339699757,1727871056856,-500.0,0.00013973,2]